bitfinex/quotes_BTCUSD_20241130
["timestamp","ask_amount","ask_price","bid_price","bid_amount"]
[1732999387329,0.56696021,96979.0,96978.0,7.9e-07]
[1732999393357,0.39696021,96979.0,96978.0,7.9e-07]
[1732999397073,0.44376021,96979.0,96978.0,7.9e-07]
[1732999398312,0.61376021,96979.0,96978.0,7.9e-07]
[1732999400287,0.69036021,96979.0,96978.0,7.9e-07]
[1732999400497,0.52036021,96979.0,96978.0,7.9e-07]
[1732999401547,0.53650294,96979.0,96978.0,7.9e-07]
[1732999403311,0.276122,96972.0,96971.0,7.9e-07]
[1732999403518,0.37896721,96972.0,96971.0,7.9e-07]
[1732999404595,0.38796721,96972.0,96971.0,7.9e-07]
[1732999405864,0.39696721,96972.0,96971.0,7.9e-07]
[1732999410151,0.40658963,96972.0,96971.0,7.9e-07]
[1732999410808,0.40658963,96972.0,96971.0,0.00172939]
[1732999412121,0.39696721,96972.0,96971.0,0.00172939]
[1732999414051,0.40659091,96972.0,96971.0,0.00172939]
[1732999423561,0.40745531,96972.0,96971.0,0.00172939]
[1732999430629,0.40746945,96972.0,96971.0,0.00172939]
[1732999435518,0.43949475,96972.0,96971.0,0.00172939]
[1732999435943,0.48499475,96972.0,96971.0,0.00172939]
[1732999441619,0.43949475,96972.0,96971.0,0.00172939]
[1732999442046,0.40746945,96972.0,96971.0,0.00172939]
[1732999442267,0.38446945,96972.0,96971.0,0.00172939]
[1732999443691,0.40746945,96972.0,96971.0,0.00172939]
[1732999443910,0.40747199,96972.0,96971.0,0.00172939]
[1732999448227,0.40747199,96972.0,96971.0,0.13382939]
[1732999451181,0.40746401,96972.0,96971.0,0.13382939]
[1732999454479,0.40746107,96972.0,96971.0,0.13382939]
[1732999454876,0.40746101,96972.0,96971.0,0.13382939]
[1732999457284,0.38446101,96972.0,96971.0,0.13382939]
[1732999457491,0.37483161,96972.0,96971.0,0.13382939]
[1732999458392,0.22483161,96972.0,96971.0,0.13382939]
[1732999459532,0.20683161,96972.0,96971.0,0.13382939]
[1732999459956,0.22383161,96972.0,96971.0,0.13382939]
[1732999467888,0.22383161,96972.0,96971.0,0.00172939]
[1732999470451,0.24683161,96972.0,96971.0,0.00172939]
[1732999489476,0.22383161,96972.0,96971.0,0.00172939]
[1732999493632,0.22383161,96972.0,96971.0,0.00623206]
[1732999493895,0.22383161,96972.0,96971.0,0.00172939]
[1732999494032,0.22383161,96972.0,96971.0,0.00623206]
[1732999494237,0.22383161,96972.0,96971.0,0.00172939]
[1732999494798,0.22383161,96972.0,96971.0,0.00623206]
[1732999495061,0.22383161,96972.0,96971.0,0.00172939]
[1732999495244,0.22383161,96972.0,96971.0,0.00623206]
[1732999495421,0.22383161,96972.0,96971.0,0.00172939]
[1732999495628,0.22383161,96972.0,96971.0,0.00623206]
[1732999495828,0.22383161,96972.0,96971.0,0.00172939]
[1732999496027,0.22383161,96972.0,96971.0,0.00623206]
[1732999496207,0.22383161,96972.0,96971.0,0.00172939]
[1732999496406,0.22383161,96972.0,96971.0,0.00623206]
[1732999496618,0.22383161,96972.0,96971.0,0.00172939]
[1732999496822,0.22383161,96972.0,96971.0,0.00623206]
[1732999497054,0.22383161,96972.0,96971.0,0.00172939]
[1732999497317,0.22383161,96972.0,96971.0,0.00623206]
[1732999497536,0.22383161,96972.0,96971.0,0.00172939]
[1732999497792,0.22383161,96972.0,96971.0,0.00623206]
[1732999513369,0.22383161,96972.0,96971.0,0.00172939]
[1732999513558,0.22383161,96972.0,96971.0,0.00622723]
[1732999513785,0.22383161,96972.0,96971.0,0.00172939]
[1732999514044,0.22383161,96972.0,96971.0,0.00622723]
[1732999514259,0.22383161,96972.0,96971.0,0.00172939]
[1732999514496,0.22383161,96972.0,96971.0,0.00622723]
[1732999514738,0.22383161,96972.0,96971.0,0.00172939]
[1732999514924,0.22383161,96972.0,96971.0,0.00622723]
[1732999524696,0.22383161,96972.0,96971.0,0.00172939]
[1732999527107,0.22383161,96972.0,96971.0,0.00622639]
[1732999527322,0.22383161,96972.0,96971.0,0.00172939]
[1732999530159,0.22383161,96972.0,96957.0,0.0474]
[1732999530160,0.103133,96962.0,96958.0,0.23209598]
[1732999530358,0.412502,96969.0,96945.0,0.000864]
[1732999530359,0.253142,96953.0,96945.0,0.000864]
[1732999530635,0.35598721,96953.0,96945.0,0.000864]
[1732999530812,0.253143,96952.0,96945.0,0.000864]
[1732999531035,0.35598821,96952.0,96945.0,0.000864]
[1732999532139,0.35598821,96952.0,96951.0,0.00037778]
[1732999532776,0.38798821,96952.0,96951.0,0.00037778]
[1732999533427,0.39398821,96952.0,96951.0,0.00037778]
[1732999533878,0.38798821,96952.0,96951.0,0.00037778]
[1732999534319,0.37898821,96952.0,96951.0,0.00037778]
[1732999534736,0.38798821,96952.0,96951.0,0.00037778]
[1732999535798,0.39498821,96952.0,96951.0,0.00037778]
[1732999540395,0.39498821,96952.0,96931.0,6.244e-05]
[1732999540396,0.103165,96932.0,96931.0,6.244e-05]
[1732999540618,0.20601021,96932.0,96931.0,0.00012204]
[1732999542210,0.20801021,96932.0,96931.0,0.00012204]
[1732999543371,0.21001021,96932.0,96931.0,0.00012204]
[1732999552574,0.21001021,96932.0,96931.0,0.00098654]
[1732999554401,0.21001021,96932.0,96931.0,0.08368654]
[1732999554633,0.21001021,96932.0,96931.0,0.09044641]
[1732999556263,0.004,96932.0,96931.0,0.09227233]
[1732999556489,0.004,96932.0,96931.0,0.19361241]
[1732999557197,0.206294,96949.0,96931.0,0.09044641]
[1732999557386,0.2508643,97016.0,96931.0,0.09044641]
[1732999557387,0.206298,96947.0,96935.0,0.206323]
[1732999557623,0.0488,96963.0,96938.0,0.103158]
[1732999557624,0.103153,96944.0,96938.0,0.103158]
[1732999557851,0.103153,96944.0,96936.0,0.00182563]
[1732999557852,0.10284521,96944.0,96941.0,0.103154]
[1732999558119,0.103149,96947.0,96940.0,0.103155]
[1732999558339,0.10284521,96946.0,96942.0,0.00676119]
[1732999558574,0.103151,96945.0,96941.0,0.08946172]
[1732999558825,0.103152,96944.0,96943.0,0.00676066]
[1732999559053,0.103152,96944.0,96941.0,0.0827]
[1732999559280,0.103152,96944.0,96943.0,0.00676066]
[1732999559507,0.103152,96944.0,96942.0,0.00676119]
[1732999559734,0.103153,96943.0,96941.0,0.0827]
[1732999560674,0.10284521,96945.0,96941.0,0.0827]
[1732999561109,0.006,96943.0,96941.0,0.0827]
[1732999562274,0.109153,96943.0,96941.0,0.0827]
[1732999562495,0.10284521,96945.0,96941.0,0.0827]
[1732999562496,0.103154,96942.0,96941.0,0.0827]
[1732999563152,0.10584521,96945.0,96941.0,0.0827]
[1732999563582,0.007,96943.0,96941.0,0.0827]
[1732999563795,0.20599621,96945.0,96941.0,0.0827]
[1732999564015,0.002,96943.0,96941.0,0.185855]
[1732999564239,0.006,96942.0,96941.0,0.185855]
[1732999565564,0.006,96942.0,96941.0,0.25678063]
[1732999565772,0.006,96942.0,96941.0,0.254955]
[1732999566211,0.006,96942.0,96941.0,0.43998426]
[1732999566453,0.006,96942.0,96941.0,0.48624158]
[1732999566674,0.001729,96943.0,96942.0,0.123154]
[1732999566904,0.001729,96943.0,96942.0,0.1249795]
[1732999568065,0.007729,96943.0,96942.0,0.1249795]
[1732999568281,0.007729,96943.0,96942.0,0.123154]
[1732999568537,0.007729,96943.0,96942.0,0.1249795]
[1732999569215,0.009729,96943.0,96942.0,0.1249795]
[1732999569435,0.009729,96943.0,96942.0,0.35626608]
[1732999569652,0.009729,96943.0,96942.0,0.35444058]
[1732999570109,0.009729,96943.0,96942.0,0.35448415]
[1732999572195,0.009729,96943.0,96942.0,0.36125326]
[1732999573562,0.009729,96943.0,96942.0,0.36128732]
[1732999574471,0.009729,96943.0,96942.0,0.36129562]
[1732999574689,0.009729,96943.0,96942.0,0.12992311]
[1732999574911,0.009729,96943.0,96942.0,0.36312113]
[1732999575135,0.009729,96943.0,96942.0,0.36129562]
[1732999575335,0.009729,96943.0,96942.0,0.12992311]
[1732999575780,0.009729,96943.0,96942.0,0.13174859]
[1732999575990,0.009729,96943.0,96942.0,0.12992311]
[1732999576427,0.009729,96943.0,96942.0,0.36129437]
[1732999577512,0.009729,96943.0,96942.0,0.12992311]
[1732999577722,0.009729,96943.0,96942.0,0.13174859]
[1732999578373,0.009729,96943.0,96942.0,0.31682812]
[1732999578586,0.009729,96943.0,96942.0,0.31500264]
[1732999578810,0.009729,96943.0,96942.0,0.12992311]
[1732999579050,0.009729,96943.0,96942.0,0.13174862]
[1732999579534,0.009729,96943.0,96942.0,0.12992311]
[1732999580398,0.009729,96943.0,96942.0,0.13174859]
[1732999580624,0.009729,96943.0,96942.0,0.36311985]
[1732999580872,0.009729,96943.0,96942.0,0.36129437]
[1732999581336,0.009729,96943.0,96942.0,0.12992311]
[1732999581549,0.009729,96943.0,96942.0,0.36305692]
[1732999581733,0.009729,96943.0,96942.0,0.36123152]
[1732999582571,0.009729,96943.0,96942.0,0.35123152]
[1732999582780,0.009729,96943.0,96942.0,0.36123152]
[1732999583412,0.009729,96943.0,96942.0,0.12992311]
[1732999583575,0.009729,96943.0,96942.0,0.36121354]
[1732999586026,0.009729,96943.0,96942.0,0.12992311]
[1732999586468,0.009729,96943.0,96942.0,0.36121354]
[1732999590458,0.009729,96943.0,96942.0,0.12992311]
[1732999593977,0.009729,96943.0,96942.0,0.11992311]
[1732999594223,0.009729,96943.0,96942.0,0.12992311]
[1732999595568,0.009729,96943.0,96942.0,0.11992311]
[1732999595777,0.009729,96943.0,96942.0,0.12992311]
[1732999596436,0.009729,96943.0,96942.0,0.14099621]
[1732999598279,0.009729,96943.0,96942.0,0.13099621]
[1732999598516,0.009729,96943.0,96942.0,0.14099621]
[1732999599286,0.009729,96943.0,96942.0,0.41859239]
[1732999600478,0.009729,96943.0,96942.0,0.14099621]
[1732999602195,0.009729,96943.0,96942.0,0.14282166]
[1732999605260,0.009729,96943.0,96942.0,0.19072166]
[1732999605475,0.009729,96943.0,96942.0,0.68260977]
[1732999605688,0.009729,96943.0,96942.0,0.68078432]
[1732999605920,0.009729,96943.0,96942.0,0.27089621]
[1732999610732,0.003729,96943.0,96942.0,0.30312639]
[1732999610929,0.001729,96943.0,96942.0,0.30312639]
[1732999611152,0.004729,96943.0,96942.0,0.30312639]
[1732999611361,0.005729,96943.0,96942.0,0.30312639]
[1732999611781,0.004729,96943.0,96942.0,0.30312639]
[1732999611996,0.004729,96943.0,96942.0,0.30412639]
[1732999612488,0.001729,96943.0,96942.0,0.30412639]
[1732999626034,0.001729,96943.0,96942.0,0.45412639]
[1732999626288,0.001729,96943.0,96942.0,0.5569716]
[1732999626962,0.001729,96943.0,96942.0,0.87005442]
[1732999627195,0.001729,96943.0,96942.0,0.5569716]
[1732999627401,0.001729,96943.0,96942.0,0.5559716]
[1732999627568,0.001729,96943.0,96942.0,0.5589716]
[1732999628193,0.001729,96943.0,96942.0,0.5559716]
[1732999628657,0.002729,96943.0,96942.0,0.5589716]
[1732999628898,0.002729,96943.0,96942.0,0.5619716]
[1732999629530,0.002729,96943.0,96942.0,0.45912639]
[1732999629732,0.002729,96943.0,96942.0,0.32622639]
[1732999630081,0.003729,96943.0,96942.0,0.32922639]
[1732999630769,0.002729,96943.0,96942.0,0.32622639]
[1732999630988,0.002729,96943.0,96942.0,0.29399621]
[1732999631198,0.003729,96943.0,96942.0,0.32917878]
[1732999631860,0.002729,96943.0,96942.0,0.32617878]
[1732999632067,0.001729,96943.0,96942.0,0.32317878]
[1732999632491,0.002729,96943.0,96942.0,0.32617878]
[1732999632941,0.003729,96943.0,96942.0,0.32917878]
[1732999633568,0.002729,96943.0,96942.0,0.32617878]
[1732999634013,0.001729,96943.0,96942.0,0.32317878]
[1732999634228,0.001729,96943.0,96942.0,0.32617878]
[1732999635051,0.002729,96943.0,96942.0,0.32917878]
[1732999639318,0.002729,96943.0,96942.0,0.45787878]
[1732999640638,0.002729,96943.0,96942.0,0.56072399]
[1732999642749,0.002729,96943.0,96942.0,0.58372399]
[1732999646326,0.001729,96943.0,96942.0,0.58072399]
[1732999646537,0.001729,96943.0,96942.0,0.57772399]
[1732999646799,0.002729,96943.0,96942.0,0.58472399]
[1732999647896,0.003729,96943.0,96942.0,0.59172399]
[1732999655722,0.0008644,96972.0,96971.0,0.113123]
[1732999655932,0.0008644,96972.0,96971.0,0.11847328]
[1732999656997,0.0018644,96972.0,96971.0,0.12847328]
[1732999657800,0.0048644,96972.0,96971.0,0.12847328]
[1732999658634,0.0008644,96972.0,96971.0,0.12847328]
[1732999658845,0.0018644,96972.0,96971.0,0.12847328]
[1732999659058,0.0018644,96972.0,96971.0,0.12947328]
[1732999662868,0.0018644,96972.0,96971.0,0.11947328]
[1732999663914,0.0018644,96972.0,96971.0,0.12129828]
[1732999664474,0.0018644,96972.0,96971.0,0.13203959]
[1732999668789,0.0018644,96972.0,96971.0,0.13021459]
[1732999682456,0.0018644,96972.0,96971.0,0.1320396]
[1732999685243,0.0018644,96972.0,96971.0,0.54251866]
[1732999685472,0.0018644,96972.0,96971.0,0.13021459]
[1732999685704,0.0018644,96972.0,96971.0,0.1642515]
[1732999693859,0.0018644,96972.0,96971.0,0.1742515]
[1732999697967,0.0018644,96972.0,96971.0,0.3242515]
[1732999698210,0.0018644,96972.0,96971.0,0.32242657]
[1732999698939,0.0018644,96972.0,96971.0,0.31168526]
[1732999704651,0.0473644,96972.0,96971.0,0.31168526]
[1732999708234,0.0473644,96972.0,96971.0,0.32268157]
[1732999711421,0.0473644,96972.0,96971.0,0.31268157]
[1732999711630,0.0473644,96972.0,96971.0,0.32268157]
[1732999713769,0.0018644,96972.0,96971.0,0.32268157]
[1732999718182,0.0008644,96972.0,96971.0,0.32268157]
[1732999718353,0.0008644,96972.0,96971.0,0.32168157]
[1732999718593,0.0018644,96972.0,96971.0,0.32668157]
[1732999718887,0.0018644,96972.0,96971.0,0.32968157]
[1732999721297,0.0030434,96972.0,96971.0,0.32968157]
[1732999729833,0.0030434,96972.0,96971.0,0.64280591]
[1732999732001,0.0030434,96972.0,96971.0,0.32968157]
[1732999732207,0.0030434,96972.0,96971.0,0.64278607]
[1732999733060,0.0030434,96972.0,96971.0,0.43252678]
[1732999735233,0.0030434,96972.0,96971.0,0.74554802]
[1732999735675,0.0030434,96972.0,96971.0,0.74555271]
[1732999737347,0.0030434,96972.0,96971.0,0.74551387]
[1732999738461,0.0030434,96972.0,96971.0,0.43252678]
[1732999738671,0.0030434,96972.0,96971.0,0.74549771]
[1732999738884,0.0030434,96972.0,96971.0,0.43252678]
[1732999740252,0.0030434,96972.0,96971.0,0.74549771]
[1732999740501,0.0030434,96972.0,96971.0,0.43252678]
[1732999740734,0.0030434,96972.0,96971.0,0.74549771]
[1732999742995,0.0030434,96972.0,96971.0,0.48052678]
[1732999743208,0.0030434,96972.0,96971.0,0.55942678]
[1732999744527,0.0018644,96972.0,96971.0,0.55824778]
[1732999752476,0.0018644,96972.0,96971.0,0.43134778]
[1732999752698,0.0018644,96972.0,96971.0,0.74414769]
[1732999753421,0.0509644,96972.0,96971.0,0.43134778]
[1732999753640,0.0509644,96972.0,96971.0,0.31850257]
[1732999753885,0.0509644,96972.0,96971.0,0.32850257]
[1732999753886,0.1280644,96972.0,96971.0,0.32850257]
[1732999754120,0.1280644,96972.0,96971.0,0.31850257]
[1732999754857,0.1280644,96972.0,96971.0,0.32850257]
[1732999755073,0.1280644,96972.0,96971.0,0.31850257]
[1732999755747,0.1280644,96972.0,96971.0,0.29629059]
[1732999756174,0.1280644,96972.0,96971.0,0.28629059]
[1732999756390,0.1280644,96972.0,96971.0,0.31848062]
[1732999758608,0.1280644,96972.0,96971.0,0.32848062]
[1732999758855,0.1280644,96972.0,96971.0,0.29629059]
[1732999759083,0.1280644,96972.0,96971.0,0.32848029]
[1732999761141,0.1280644,96972.0,96971.0,0.29629059]
[1732999761357,0.1280644,96972.0,96971.0,0.3284789]
[1732999761580,0.1280644,96972.0,96971.0,0.29629059]
[1732999762303,0.0509644,96972.0,96971.0,0.29629059]
[1732999762785,0.0509644,96972.0,96971.0,0.32847849]
[1732999765199,0.0509644,96972.0,96971.0,0.29629059]
[1732999765441,0.0509644,96972.0,96971.0,0.32847473]
[1732999765682,0.0509644,96972.0,96971.0,0.29629059]
[1732999766680,0.0018644,96972.0,96971.0,0.29629059]
[1732999766923,0.0018644,96972.0,96971.0,0.32847356]
[1732999767656,0.0018644,96972.0,96971.0,0.29629059]
[1732999768388,0.0018644,96972.0,96971.0,0.32847183]
[1732999768625,0.0018644,96972.0,96971.0,0.29629059]
[1732999768864,0.0018644,96972.0,96971.0,0.32847182]
[1732999769588,0.0018644,96972.0,96971.0,0.29629059]
[1732999769824,0.0018644,96972.0,96971.0,0.32847129]
[1732999770037,0.0018644,96972.0,96971.0,0.32933549]
[1732999770500,0.0018644,96972.0,96971.0,0.29715479]
[1732999770955,0.0018644,96972.0,96971.0,0.32933509]
[1732999771149,0.0018644,96972.0,96971.0,0.29715479]
[1732999771406,0.0018644,96972.0,96971.0,0.43217974]
[1732999775386,0.0018644,96972.0,96971.0,0.74501608]
[1732999775601,0.0018644,96972.0,96971.0,0.7449861]
[1732999775818,0.0018644,96972.0,96971.0,0.43217974]
[1732999780358,0.0018644,96972.0,96971.0,0.74494053]
[1732999782068,0.0018644,96972.0,96971.0,0.48207974]
[1732999782819,0.0018644,96972.0,96971.0,0.56177974]
[1732999785451,0.0018644,96972.0,96971.0,0.87449897]
[1732999786148,0.0018644,96972.0,96971.0,0.89749897]
[1732999786149,4e-07,96972.0,96971.0,0.89749897]
[1732999786435,0.0008645,96990.0,96989.0,0.271925]
[1732999786659,0.0008645,96990.0,96989.0,0.40694995]
[1732999786923,0.0008645,96990.0,96989.0,0.41223048]
[1732999786924,0.0010363,96990.0,96989.0,0.41223048]
[1732999789132,0.0020363,96990.0,96989.0,0.42123048]
[1732999789701,0.0030363,96990.0,96989.0,0.42623048]
[1732999792053,0.0030363,96990.0,96989.0,0.43746389]
[1732999796059,0.0030363,96990.0,96989.0,0.40528415]
[1732999798710,0.0030363,96990.0,96989.0,0.4374073]
[1732999799911,0.0030363,96990.0,96989.0,0.43740902]
[1732999801503,0.0030363,96990.0,96989.0,0.84713345]
[1732999801759,0.0030363,96990.0,96989.0,0.40528415]
[1732999802285,0.0030363,96990.0,96989.0,0.43741328]
[1732999822722,0.0030363,96990.0,96989.0,0.48501328]
[1732999822932,0.0030363,96990.0,96989.0,0.87962645]
[1732999824284,0.0030363,96990.0,96989.0,0.56711328]
[1732999826017,0.0030363,96990.0,96989.0,0.51951328]
[1732999826490,0.0030363,96990.0,96989.0,0.43741328]
[1732999860518,0.01040055,96998.0,96997.0,0.261916]
[1732999860738,0.01040055,96998.0,96997.0,0.36476121]
[1732999860970,0.01040055,96998.0,96997.0,0.36936983]
[1732999861190,0.01040055,96998.0,96997.0,0.40149896]
[1732999861872,0.01040055,96998.0,96997.0,0.40449896]
[1732999862344,0.0796,97002.0,96999.0,0.261914]
[1732999862579,0.0796,97002.0,96999.0,0.29404313]
[1732999862809,0.0796,97002.0,96999.0,0.29865116]
[1732999863448,0.1257,97002.0,96999.0,0.29865116]
[1732999863673,0.1257,97002.0,96999.0,0.30365116]
[1732999865203,0.1257,97002.0,96999.0,0.30665116]
[1732999870208,0.1257,97002.0,96999.0,0.31747432]
[1732999873399,0.1257,97002.0,96999.0,0.35872632]
[1732999886366,0.0796,97002.0,96999.0,0.35872632]
[1732999891708,0.1316,97007.0,96999.0,0.35872632]
[1732999899184,0.1316,97007.0,96999.0,0.31747432]
[1732999922653,0.0814,97013.0,96999.0,0.31747432]
[1732999922857,0.0814,97013.0,96999.0,0.36597432]
[1732999926996,0.0495,97009.0,96999.0,0.31747432]
[1732999934911,0.0495,97009.0,96999.0,0.63061969]
[1732999935203,0.0495,97009.0,96999.0,0.31747432]
[1732999939036,0.0495,97009.0,96999.0,0.63061969]
[1732999939699,0.0495,97009.0,96999.0,0.31747432]
[1732999943900,0.0814,97013.0,96999.0,0.31747432]
[1732999944103,0.0008643,97016.0,96999.0,0.67652797]
[1732999944322,0.0468,97012.0,96999.0,0.67652797]
[1732999947205,0.0008643,97016.0,96999.0,0.77937318]
[1732999955094,0.0008643,97016.0,96999.0,0.46621953]
[1732999961743,0.06546395,97019.0,97018.0,0.111894]
[1732999961972,0.0473,97029.0,97020.0,0.261892]
[1732999962192,0.0473,97029.0,97020.0,0.29408178]
[1732999962405,0.0473,97029.0,97020.0,0.29817254]
[1732999963245,0.00146022,97021.0,97020.0,0.29817254]
[1732999963626,0.00146022,97021.0,97020.0,0.30217254]
[1732999963843,0.00146022,97021.0,97020.0,0.30417254]
[1732999964049,0.00146022,97021.0,97020.0,0.30017254]
[1732999964262,0.00146022,97021.0,97020.0,0.30317254]
[1732999965720,0.00146022,97021.0,97020.0,0.30517254]
[1732999967897,0.00146022,97021.0,97020.0,0.31638487]
[1732999972026,0.00146022,97021.0,97020.0,0.28419509]
[1732999976279,0.07722442,97028.0,97027.0,0.111885]
[1732999976490,0.07740253,97028.0,97027.0,0.111885]
[1732999976704,0.07740253,97028.0,97027.0,0.11601089]
[1732999977793,0.07740253,97028.0,97027.0,0.11701089]
[1732999978000,0.07740253,97028.0,97027.0,0.11801089]
[1732999979174,0.07826643,97028.0,97027.0,0.11801089]
[1732999987854,0.07826643,97028.0,97027.0,0.11681089]
[1732999992374,0.07826643,97028.0,97027.0,0.52681144]
[1732999995176,0.07826643,97028.0,97027.0,0.1490105]
[1732999996928,0.12606643,97028.0,97027.0,0.10918989]
[1732999997132,0.12606643,97028.0,97027.0,0.11681089]
[1732999997364,0.12606643,97028.0,97027.0,0.10918989]
[1732999997804,0.12606643,97028.0,97027.0,0.11681089]
[1732999998247,0.12606643,97028.0,97027.0,0.10918989]
[1732999998949,0.12601641,97028.0,97027.0,0.10918989]
[1732999999594,0.12601641,97028.0,97027.0,0.10818989]
[1732999999809,0.12601641,97028.0,97027.0,0.10918989]
[1733000000321,0.12601641,97028.0,97027.0,0.10818989]
[1733000000542,0.12601641,97028.0,97027.0,0.10918989]
[1733000001193,0.22907941,97028.0,97027.0,0.00512589]
[1733000001413,0.22907941,97028.0,97027.0,0.00612589]
[1733000002102,0.22907941,97028.0,97027.0,0.0061256]
[1733000002532,0.22907941,97028.0,97027.0,0.0078538]
[1733000005629,0.33192462,97028.0,97027.0,0.0078538]
[1733000006091,0.33192462,97028.0,97027.0,0.0037282]
[1733000006324,0.33192462,97028.0,97027.0,0.0078538]
[1733000006547,0.33192462,97028.0,97027.0,0.14484244]
[1733000006757,0.33192462,97028.0,97027.0,0.14480683]
[1733000007034,0.33892462,97028.0,97027.0,0.19217199]
[1733000007225,0.33192462,97028.0,97027.0,0.19117199]
[1733000007506,0.33692462,97028.0,97027.0,0.19117199]
[1733000007712,0.34392462,97028.0,97027.0,0.19217199]
[1733000007939,0.33892462,97028.0,97027.0,0.19217199]
[1733000008123,0.34392462,97028.0,97027.0,0.19217199]
[1733000008399,0.34392462,97028.0,97027.0,0.0068538]
[1733000008983,0.34392462,97028.0,97027.0,0.19217199]
[1733000009186,0.34392462,97028.0,97027.0,0.0068538]
[1733000010430,0.24086162,97028.0,97027.0,0.0068538]
[1733000011669,0.24086162,97028.0,97027.0,0.14572173]
[1733000012121,0.24086162,97028.0,97027.0,0.19201104]
[1733000015274,0.24086162,97028.0,97027.0,0.0068538]
[1733000021097,0.24086162,97028.0,97027.0,0.19201104]
[1733000021734,0.24086162,97028.0,97027.0,0.0068538]
[1733000022986,0.24086162,97028.0,97027.0,0.1099178]
[1733000023195,0.24086162,97028.0,97027.0,0.0068538]
[1733000023421,0.24086162,97028.0,97027.0,0.19196596]
[1733000023645,0.24086162,97028.0,97027.0,0.1099178]
[1733000023866,0.24086162,97028.0,97027.0,0.19196596]
[1733000024293,0.24086162,97028.0,97027.0,0.0068538]
[1733000024496,0.24086162,97028.0,97027.0,0.1099178]
[1733000025130,0.24086162,97028.0,97027.0,0.29502996]
[1733000025541,0.24086162,97028.0,97027.0,0.1099178]
[1733000025769,0.24086162,97028.0,97027.0,0.29502996]
[1733000026133,0.24086162,97028.0,97027.0,0.1099178]
[1733000026857,0.24086162,97028.0,97027.0,0.29502996]
[1733000027339,0.24086162,97028.0,97027.0,0.1099178]
[1733000027803,0.24086162,97028.0,97027.0,0.0068538]
[1733000030495,0.24086162,97028.0,97027.0,0.23827202]
[1733000030970,0.24086162,97028.0,97027.0,0.34133602]
[1733000031129,0.24086162,97028.0,97027.0,0.1099178]
[1733000031697,0.24086162,97028.0,97027.0,0.34133602]
[1733000032311,0.11588722,97028.0,97027.0,0.1099178]
[1733000033894,0.01304201,97028.0,97027.0,0.1099178]
[1733000035168,0.00804201,97028.0,97027.0,0.1099178]
[1733000035583,0.00304201,97028.0,97027.0,0.1956388]
[1733000035985,0.00304201,97028.0,97027.0,0.1966388]
[1733000036717,0.00304201,97028.0,97027.0,0.1956388]
[1733000036916,0.00104201,97028.0,97027.0,0.1956388]
[1733000037220,0.00104201,97028.0,97027.0,0.1986388]
[1733000052146,0.00104201,97028.0,97027.0,0.1195388]
[1733000067671,0.00104201,97028.0,97027.0,0.52972324]
[1733000068302,0.00104201,97028.0,97027.0,0.52972719]
[1733000068537,0.00104201,97028.0,97027.0,0.56193559]
[1733000069569,0.00104201,97028.0,97027.0,0.55431459]
[1733000071257,0.00104201,97028.0,97027.0,0.56193559]
[1733000071473,0.00104201,97028.0,97027.0,0.55443214]
[1733000072194,0.00104201,97028.0,97027.0,0.56205314]
[1733000072400,0.00104201,97028.0,97027.0,0.2788472]
[1733000086723,0.08026578,97042.0,97041.0,0.103049]
[1733000086932,0.08026578,97042.0,97041.0,0.10750921]
[1733000088040,0.08726578,97042.0,97041.0,0.10750921]
[1733000092911,0.08812988,97042.0,97041.0,0.10750921]
[1733000115225,0.08812988,97042.0,97041.0,0.10923721]
[1733000116895,0.08812988,97042.0,97041.0,0.00618821]
[1733000117252,0.0078641,97042.0,97041.0,0.10923721]
[1733000117883,0.0078641,97042.0,97041.0,0.00618821]
[1733000118112,0.0078641,97042.0,97041.0,0.10923721]
[1733000118309,0.0078641,97042.0,97041.0,0.00618821]
[1733000120081,0.1109121,97042.0,97041.0,0.00618821]
[1733000120489,0.0078641,97042.0,97041.0,0.00618821]
[1733000120703,0.1109121,97042.0,97041.0,0.00618821]
[1733000122716,0.1909121,97042.0,97041.0,0.00618821]
[1733000132821,0.1909121,97042.0,97041.0,0.001728]
[1733000134280,0.1909121,97042.0,97041.0,0.28000809]
[1733000134781,0.34205731,97042.0,97041.0,0.00551306]
[1733000135275,0.34205731,97042.0,97041.0,0.23737543]
[1733000136296,0.34205731,97042.0,97041.0,0.00551306]
[1733000138279,0.34205731,97042.0,97041.0,0.19092582]
[1733000139615,0.34205731,97042.0,97041.0,0.00551306]
[1733000139822,0.42205731,97042.0,97041.0,0.00551306]
[1733000140472,0.42205731,97042.0,97041.0,0.09821341]
[1733000140676,0.42205731,97042.0,97041.0,0.00551306]
[1733000141313,0.42205731,97042.0,97041.0,0.09818198]
[1733000141959,0.42205731,97042.0,97041.0,0.00551306]
[1733000143627,0.42205731,97042.0,97041.0,0.09816646]
[1733000145299,0.42205731,97042.0,97041.0,0.09816064]
[1733000147330,0.42205731,97042.0,97041.0,0.00551306]
[1733000159194,0.42205731,97042.0,97041.0,0.001728]
[1733000159403,0.42205731,97042.0,97041.0,0.006019]
[1733000163925,0.42162991,97042.0,97041.0,0.006019]
[1733000169700,0.29332991,97042.0,97041.0,0.006019]
[1733000169905,0.29332991,97042.0,97041.0,0.09866169]
[1733000170351,0.29332991,97042.0,97041.0,0.006019]
[1733000170510,0.0874367,97042.0,97041.0,0.006019]
[1733000172342,0.0874367,97042.0,97041.0,0.2376323]
[1733000172737,0.0074367,97042.0,97041.0,0.2376323]
[1733000174283,0.0074367,97042.0,97041.0,0.23767431]
[1733000175418,0.0074367,97042.0,97041.0,0.006019]
[1733000177910,0.0874367,97042.0,97041.0,0.006019]
[1733000178347,0.1904847,97042.0,97041.0,0.006019]
[1733000178758,0.0874367,97042.0,97041.0,0.006019]
[1733000183671,0.1904847,97042.0,97041.0,0.006019]
[1733000185168,0.0874367,97042.0,97041.0,0.006019]
[1733000185540,0.0874367,97042.0,97041.0,0.109068]
[1733000187080,0.0874367,97042.0,97041.0,0.006019]
[1733000188727,0.0874367,97042.0,97041.0,0.109068]
[1733000192978,0.0874367,97042.0,97041.0,0.239768]
[1733000193188,0.0074367,97042.0,97041.0,0.239768]
[1733000193398,0.0074367,97042.0,97041.0,0.5176912]
[1733000193603,0.0074367,97042.0,97041.0,0.239768]
[1733000200602,0.0074367,97042.0,97041.0,0.397389]
[1733000201774,0.0058641,97042.0,97041.0,0.397389]
[1733000201998,0.0058641,97042.0,97041.0,0.400389]
[1733000202601,0.0058641,97042.0,97041.0,0.41140879]
[1733000202860,0.0008641,97042.0,97041.0,0.41140879]
[1733000203222,0.0008641,97042.0,97041.0,0.41640879]
[1733000207857,0.0008641,97042.0,97041.0,0.32748779]
[1733000209589,0.0008641,97042.0,97041.0,0.27808779]
[1733000211590,0.0008641,97042.0,97041.0,0.267068]
[1733000214796,0.0008641,97042.0,97041.0,0.54461345]
[1733000215364,0.0008641,97042.0,97041.0,0.267068]
[1733000217986,0.0008641,97042.0,97041.0,0.54467365]
[1733000218437,0.0008641,97042.0,97041.0,0.267068]